fUSD/lending_fUSD_20260615
["ID","MTS","AMOUNT","RATE_DAILY","PERIOD"]
[425071474,1781457038000,-611.26988497,9.639e-05,2]
[425071471,1781457038000,-611.26988497,9.639e-05,2]
[425071470,1781457038000,-611.26988497,9.639e-05,2]
[425071465,1781457038000,-611.26988497,9.639e-05,2]
[425071467,1781457038000,-611.26988497,9.639e-05,2]
[425071460,1781457038000,-611.26988497,9.639e-05,2]
[425071449,1781457038000,-611.26988497,9.639e-05,2]
[425071455,1781457038000,-611.26988497,9.639e-05,2]
[425071456,1781457038000,-611.26988497,9.639e-05,2]
[425071466,1781457038000,-611.26988497,9.639e-05,2]
[425071453,1781457038000,-354.49452757,9.639e-05,2]
[425071454,1781457038000,-611.26988497,9.639e-05,2]
[425071451,1781457038000,-611.26988497,9.639e-05,2]
[425071452,1781457038000,-611.26988497,9.639e-05,2]
[425071450,1781457038000,-264.25595301,9.639e-05,2]
[425071447,1781457038000,-611.26988497,9.639e-05,2]
[425071448,1781457038000,-500.0,9.639e-05,2]
[425071446,1781457038000,-611.26988497,9.639e-05,2]
[425071445,1781457038000,-500.0,9.639e-05,2]
[425071444,1781457038000,-352.22346137,9.639e-05,2]
[425071443,1781457038000,-151.88208216,9.639e-05,2]
[425071459,1781457038000,-611.26988497,9.639e-05,2]
[425071473,1781457038000,-611.26988497,9.639e-05,2]
[425071476,1781457038000,-611.26988497,9.639e-05,2]
[425071468,1781457038000,-611.26988497,9.639e-05,2]
[425071478,1781457038000,-611.26988497,9.639e-05,2]
[425071513,1781457038000,-611.26988497,9.639e-05,2]
[425071511,1781457038000,-611.26988497,9.639e-05,2]
[425071507,1781457038000,-611.26988497,9.639e-05,2]
[425071509,1781457038000,-611.26988497,9.639e-05,2]
[425071503,1781457038000,-611.26988497,9.639e-05,2]
[425071505,1781457038000,-611.26988497,9.639e-05,2]
[425071501,1781457038000,-611.26988497,9.639e-05,2]
[425071495,1781457038000,-611.26988497,9.639e-05,2]
[425071499,1781457038000,-611.26988497,9.639e-05,2]
[425071497,1781457038000,-611.26988497,9.639e-05,2]
[425071494,1781457038000,-611.26988497,9.639e-05,2]
[425071489,1781457038000,-611.26988497,9.639e-05,2]
[425071487,1781457038000,-611.26988497,9.639e-05,2]
[425071496,1781457038000,-611.26988497,9.639e-05,2]
[425071490,1781457038000,-611.26988497,9.639e-05,2]
[425071479,1781457038000,-611.26988497,9.639e-05,2]
[425071477,1781457038000,-611.26988497,9.639e-05,2]
[425071480,1781457038000,-611.26988497,9.639e-05,2]
[425071481,1781457038000,-611.26988497,9.639e-05,2]
[425071485,1781457038000,-611.26988497,9.639e-05,2]
[425071484,1781457038000,-611.26988497,9.639e-05,2]
[425071475,1781457038000,-611.26988497,9.639e-05,2]
[425071482,1781457038000,-611.26988497,9.639e-05,2]
[425071492,1781457038000,-611.26988497,9.639e-05,2]
[425071486,1781457038000,-611.26988497,9.639e-05,2]
[425071488,1781457038000,-611.26988497,9.639e-05,2]
[425071491,1781457038000,-611.26988497,9.639e-05,2]
[425071493,1781457038000,-611.26988497,9.639e-05,2]
[425071483,1781457038000,-611.26988497,9.639e-05,2]
[425071575,1781457039000,-150.0,0.00011663,2]
[425071570,1781457039000,-166.67,0.00011642,2]
[425071569,1781457039000,-10644.3427809,0.00011564,2]
[425071572,1781457039000,-150.0,0.00011663,2]
[425071568,1781457039000,-7115.48685175,0.00011564,2]
[425071563,1781457039000,-979.53,0.00011179,2]
[425071566,1781457039000,-500.0,0.00011424,2]
[425071562,1781457039000,-2000.0,0.0001117,2]
[425071561,1781457039000,-1600.0,0.0001117,2]
[425071577,1781457039000,-150.0,0.00011663,2]
[425071567,1781457039000,-979.53,0.00011459,2]
[425071571,1781457039000,-150.0,0.00011663,2]
[425071582,1781457039000,-150.0,0.0001172,2]
[425071576,1781457039000,-150.0,0.00011663,2]
[425071579,1781457039000,-150.0,0.00011684,2]
[425071581,1781457039000,-150.0,0.00011705,2]
[425071578,1781457039000,-150.0,0.00011682,2]
[425071580,1781457039000,-150.0,0.00011701,2]
[425071560,1781457039000,-255.0,0.00011161,2]
[425071584,1781457039000,-979.53,0.00011738,2]
[425071588,1781457039000,-150.0,0.00011768,2]
[425071583,1781457039000,-150.0,0.00011726,2]
[425071586,1781457039000,-150.0,0.00011747,2]
[425071585,1781457039000,-150.0,0.00011739,2]
[425071574,1781457039000,-150.0,0.00011663,2]
[425071559,1781457039000,-500.0,0.0001115,2]
[425071555,1781457039000,-166.67,0.00011035,2]
[425071554,1781457039000,-1292.02069154,0.00011,2]
[425071525,1781457039000,-500.0,9.779e-05,2]
[425071521,1781457039000,-611.26988497,9.639e-05,2]
[425071523,1781457039000,-500.0,9.779e-05,2]
[425071527,1781457039000,-500.0,9.779e-05,2]
[425071536,1781457039000,-539.20158058,9.779e-05,2]
[425071533,1781457039000,-500.0,9.779e-05,2]
[425071529,1781457039000,-500.0,9.779e-05,2]
[425071531,1781457039000,-391.93468362,9.779e-05,2]
[425071541,1781457039000,-500.0,0.00010328,2]
[425071540,1781457039000,-253.40754657,0.000103,2]
[425071545,1781457039000,-250.0,0.00010598,2]
[425071556,1781457039000,-1528.3923803,0.00011064,2]
[425071543,1781457039000,-316.37,0.00010573,2]
[425071538,1781457039000,-4460.74894828,0.000103,2]
[425071550,1781457039000,-420.0,0.00010757,2]
[425071549,1781457039000,-271.87708515,0.000107,2]
[425071551,1781457039000,-1000.0,0.00010787,2]
[425071553,1781457039000,-150.0,0.00010959,2]
[425071552,1781457039000,-500.0,0.00010876,2]
[425071587,1781457039000,-150.0,0.00011758,2]
[425071558,1781457039000,-1979.75,0.00011149,2]
[425071565,1781457039000,-163.15,0.00011311,2]
[425071557,1781457039000,-4033.45167315,0.00011064,2]
[425071564,1781457039000,-150.0,0.00011218,2]
[425071547,1781457039000,-500.0,0.00010602,2]
[425071590,1781457039000,-150.0,0.00011771,2]
[425071573,1781457039000,-150.0,0.00011663,2]
[425071591,1781457039000,-150.0,0.00011777,2]
[425071615,1781457039000,-150.0,0.00011893,2]
[425071614,1781457039000,-150.0,0.00011892,2]
[425071620,1781457039000,-150.0,0.00011949,2]
[425071621,1781457039000,-150.0,0.00011956,2]
[425071625,1781457039000,-150.0,0.00011987,2]
[425071634,1781457039000,-150.0,0.0001206,2]
[425071633,1781457039000,-150.0,0.00012044,2]
[425071635,1781457039000,-150.0,0.00012063,2]
[425071624,1781457039000,-150.0,0.00011987,2]
[425071626,1781457039000,-150.0,0.00011987,2]
[425071631,1781457039000,-150.0,0.00012025,2]
[425071629,1781457039000,-979.53,0.00012018,2]
[425071628,1781457039000,-150.0,0.00012006,2]
[425071627,1781457039000,-150.0,0.00011997,2]
[425071632,1781457039000,-150.0,0.00012039,2]
[425071636,1781457039000,-14402.1735,0.00012064,2]
[425071638,1781457039000,-150.0,0.00012082,2]
[425071641,1781457039000,-150.0,0.00012101,2]
[425071639,1781457039000,-150.0,0.00012095,2]
[425071642,1781457039000,-150.0,0.00012102,2]
[425071643,1781457039000,-229.4994282,0.00012117,2]
[425071644,1781457039000,-163.15,0.00012119,2]
[425071637,1781457039000,-150.0,0.00012081,2]
[425071600,1781457039000,-285.701371,0.00011822,2]
[425071640,1781457039000,-150.0,0.00012095,2]
[425071622,1781457039000,-150.0,0.00011968,2]
[425071623,1781457039000,-150.0,0.00011977,2]
[425071630,1781457039000,-150.0,0.00012018,2]
[425071617,1781457039000,-150.0,0.00011914,2]
[425071594,1781457039000,-150.0,0.00011796,2]
[425071619,1781457039000,-150.0,0.00011935,2]
[425071593,1781457039000,-150.0,0.00011788,2]
[425071596,1781457039000,-150.0,0.00011815,2]
[425071597,1781457039000,-182.159504,0.00011822,2]
[425071598,1781457039000,-167.280071,0.00011822,2]
[425071595,1781457039000,-150.0,0.00011809,2]
[425071589,1781457039000,-150.0,0.00011771,2]
[425071599,1781457039000,-843.892746,0.00011822,2]
[425071612,1781457039000,-150.0,0.00011879,2]
[425071604,1781457039000,-150.0,0.00011835,2]
[425071602,1781457039000,-150.0,0.0001183,2]
[425071601,1781457039000,-150.0,0.00011825,2]
[425071592,1781457039000,-180.0,0.00011788,2]
[425071605,1781457039000,-342.647014,0.00011837,2]
[425071603,1781457039000,-249.0,0.00011833,2]
[425071618,1781457039000,-150.0,0.0001193,2]
[425071613,1781457039000,-150.0,0.00011879,2]
[425071607,1781457039000,-150.0,0.00011851,2]
[425071608,1781457039000,-453.820644,0.00011853,2]
[425071616,1781457039000,-150.0,0.00011911,2]
[425071609,1781457039000,-150.0,0.00011854,2]
[425071610,1781457039000,-150.0,0.00011872,2]
[425071606,1781457039000,-352.444772,0.00011837,2]
[425071611,1781457039000,-150.0,0.00011873,2]
[425071675,1781457040000,-150.0,0.00012406,2]
[425071673,1781457040000,-150.0,0.00012368,2]
[425071674,1781457040000,-150.0,0.00012387,2]
[425071678,1781457040000,-763.01648472,0.000125,2]
[425071679,1781457040000,-169.64399403,0.00012502,2]
[425071680,1781457040000,-150.0,0.00012527,2]
[425071681,1781457040000,-150.0,0.00012527,2]
[425071682,1781457040000,-1600.0,0.00012567,2]
[425071676,1781457040000,-150.0,0.00012419,2]
[425071685,1781457040000,-500.0,0.00012567,2]
[425071691,1781457040000,-500.0,0.00012567,2]
[425071689,1781457040000,-500.0,0.00012567,2]
[425071687,1781457040000,-500.0,0.00012567,2]
[425071686,1781457040000,-500.0,0.00012567,2]
[425071683,1781457040000,-2000.0,0.00012567,2]
[425071690,1781457040000,-500.0,0.00012567,2]
[425071684,1781457040000,-500.0,0.00012567,2]
[425071692,1781457040000,-500.0,0.00012567,2]
[425071697,1781457040000,-500.0,0.00012567,2]
[425071699,1781457040000,-500.0,0.00012567,2]
[425071695,1781457040000,-500.0,0.00012567,2]
[425071704,1781457040000,-500.0,0.00012567,2]
[425071694,1781457040000,-500.0,0.00012567,2]
[425071677,1781457040000,-150.0,0.00012419,2]
[425071688,1781457040000,-336.89480713,0.00012567,2]
[425071672,1781457040000,-150.0,0.00012349,2]
[425071646,1781457040000,-150.0,0.00012123,2]
[425071669,1781457040000,-150.0,0.00012311,2]
[425071693,1781457040000,-500.0,0.00012567,2]
[425071648,1781457040000,-150.0,0.00012144,2]
[425071647,1781457040000,-150.0,0.00012139,2]
[425071649,1781457040000,-150.0,0.00012159,2]
[425071650,1781457040000,-150.0,0.00012165,2]
[425071652,1781457040000,-150.0,0.00012186,2]
[425071655,1781457040000,-150.0,0.00012203,2]
[425071656,1781457040000,-150.0,0.00012206,2]
[425071654,1781457040000,-150.0,0.00012203,2]
[425071651,1781457040000,-150.0,0.00012178,2]
[425071657,1781457040000,-150.0,0.00012216,2]
[425071653,1781457040000,-150.0,0.00012197,2]
[425071658,1781457040000,-150.0,0.00012235,2]
[425071664,1781457040000,-150.0,0.00012273,2]
[425071665,1781457040000,-150.0,0.0001229,2]
[425071659,1781457040000,-150.0,0.00012248,2]
[425071663,1781457040000,-150.0,0.00012269,2]
[425071667,1781457040000,-150.0,0.00012311,2]
[425071662,1781457040000,-433.0,0.00012268,2]
[425071661,1781457040000,-150.0,0.00012254,2]
[425071660,1781457040000,-166.67,0.00012249,2]
[425071645,1781457040000,-150.0,0.0001212,2]
[425071666,1781457040000,-979.53,0.00012297,2]
[425071668,1781457040000,-150.0,0.00012311,2]
[425071670,1781457040000,-166.56,0.00012329,2]
[425071671,1781457040000,-150.0,0.00012332,2]
[425071698,1781457040000,-500.0,0.00012567,2]
[425071731,1781457040000,-500.0,0.00012567,2]
[425071700,1781457040000,-515.7929916,0.00012567,2]
[425071730,1781457040000,-500.0,0.00012567,2]
[425071732,1781457040000,-500.0,0.00012567,2]
[425071734,1781457040000,-500.0,0.00012567,2]
[425071735,1781457040000,-579.2933229,0.00012567,2]
[425071733,1781457040000,-551.99405593,0.00012567,2]
[425071736,1781457040000,-500.0,0.00012567,2]
[425071749,1781457040000,-500.0,0.00012567,2]
[425071740,1781457040000,-552.49199407,0.00012567,2]
[425071750,1781457040000,-500.0,0.00012567,2]
[425071741,1781457040000,-500.0,0.00012567,2]
[425071743,1781457040000,-500.0,0.00012567,2]
[425071746,1781457040000,-500.0,0.00012567,2]
[425071744,1781457040000,-500.0,0.00012567,2]
[425071742,1781457040000,-500.0,0.00012567,2]
[425071747,1781457040000,-500.0,0.00012567,2]
[425071748,1781457040000,-500.0,0.00012567,2]
[425071753,1781457040000,-150.0,0.00012635,2]
[425071751,1781457040000,-594.45080265,0.00012567,2]
[425071758,1781457040000,-150.0,0.0001273,2]
[425071757,1781457040000,-2796.32278444,0.00012707,2]
[425071754,1781457040000,-150.0,0.00012635,2]
[425071752,1781457040000,-3600.0,0.000126,4]
[425071755,1781457040000,-150.0,0.00012654,2]
[425071756,1781457040000,-7200.0,0.000127,4]
[425071702,1781457040000,-500.0,0.00012567,2]
[425071738,1781457040000,-500.0,0.00012567,2]
[425071737,1781457040000,-500.0,0.00012567,2]
[425071745,1781457040000,-500.0,0.00012567,2]
[425071728,1781457040000,-500.0,0.00012567,2]
[425071739,1781457040000,-500.0,0.00012567,2]
[425071701,1781457040000,-500.0,0.00012567,2]
[425071705,1781457040000,-500.0,0.00012567,2]
[425071710,1781457040000,-500.0,0.00012567,2]
[425071707,1781457040000,-500.0,0.00012567,2]
[425071716,1781457040000,-500.0,0.00012567,2]
[425071713,1781457040000,-200.0,0.00012567,2]
[425071714,1781457040000,-150.0,0.00012567,2]
[425071715,1781457040000,-500.0,0.00012567,2]
[425071709,1781457040000,-500.0,0.00012567,2]
[425071708,1781457040000,-633.0,0.00012567,2]
[425071711,1781457040000,-523.29570536,0.00012567,2]
[425071706,1781457040000,-500.0,0.00012567,2]
[425071718,1781457040000,-500.0,0.00012567,2]
[425071725,1781457040000,-500.0,0.00012567,2]
[425071712,1781457040000,-150.0,0.00012567,2]
[425071726,1781457040000,-500.0,0.00012567,2]
[425071724,1781457040000,-500.0,0.00012567,2]
[425071727,1781457040000,-500.0,0.00012567,2]
[425071721,1781457040000,-500.0,0.00012567,2]
[425071729,1781457040000,-240.68764534,0.00012567,2]
[425071719,1781457040000,-500.0,0.00012567,2]
[425071722,1781457040000,-500.0,0.00012567,2]
[425071720,1781457040000,-500.0,0.00012567,2]
[425071717,1781457040000,-500.0,0.00012567,2]
[425071723,1781457040000,-500.0,0.00012567,2]
[425071797,1781457041000,-500.0,0.00012963,2]
[425071804,1781457041000,-3356.27620305,0.00013,2]
[425071806,1781457041000,-2796.32278443,0.0001302,2]
[425071807,1781457041000,-2789.60281313,0.00013074,2]
[425071787,1781457041000,-150.0,0.00012959,2]
[425071790,1781457041000,-500.0,0.00012963,2]
[425071788,1781457041000,-500.0,0.00012963,2]
[425071793,1781457041000,-500.0,0.00012963,2]
[425071789,1781457041000,-500.0,0.00012963,2]
[425071799,1781457041000,-3000.0,0.00012964,2]
[425071792,1781457041000,-500.0,0.00012963,2]
[425071796,1781457041000,-500.0,0.00012963,2]
[425071812,1781457041000,-151.42762908,0.00013115,2]
[425071798,1781457041000,-500.0,0.00012963,2]
[425071801,1781457041000,-2500000.0,0.00012964,2]
[425071803,1781457041000,-169.64399403,0.00012999,2]
[425071805,1781457041000,-318.19055701,0.00013,2]
[425071800,1781457041000,-180.0,0.00012964,2]
[425071808,1781457041000,-6576.79905029,0.00013111,2]
[425071810,1781457041000,-200.0,0.00013115,2]
[425071811,1781457041000,-187.05933644,0.00013115,2]
[425071814,1781457041000,-29401.54596925,0.00013121,2]
[425071813,1781457041000,-215.03290396,0.00013115,2]
[425071791,1781457041000,-500.0,0.00012963,2]
[425071815,1781457041000,-20988.86700479,0.00013184,2]
[425071802,1781457041000,-20988.86700479,0.00012991,2]
[425071786,1781457041000,-150.0,0.00012959,2]
[425071772,1781457041000,-150.0,0.00012873,2]
[425071784,1781457041000,-500.0,0.00012959,2]
[425071816,1781457041000,-2311.0,0.0001321,5]
[425071759,1781457041000,-150.0,0.00012743,2]
[425071762,1781457041000,-20988.86700487,0.00012799,2]
[425071770,1781457041000,-150.0,0.00012851,2]
[425071765,1781457041000,-1618.6668969,0.00012838,2]
[425071766,1781457041000,-2220.89985749,0.00012841,2]
[425071771,1781457041000,-166.67,0.00012856,2]
[425071764,1781457041000,-150.0,0.00012806,2]
[425071761,1781457041000,-3177.61044648,0.00012789,2]
[425071767,1781457041000,-3087.97190107,0.00012841,2]
[425071768,1781457041000,-4722.40181848,0.00012841,2]
[425071763,1781457041000,-10800.0,0.000128,4]
[425071794,1781457041000,-500.0,0.00012963,2]
[425071769,1781457041000,-264.70019315,0.00012841,2]
[425071783,1781457041000,-926.87472025,0.00012954,2]
[425071775,1781457041000,-612.6573948,0.00012891,2]
[425071776,1781457041000,-187.82072455,0.00012891,2]
[425071774,1781457041000,-1312.53890253,0.00012891,2]
[425071780,1781457041000,-14400.0,0.000129,4]
[425071781,1781457041000,-163.15,0.00012927,2]
[425071778,1781457041000,-1988.01539828,0.00012899,2]
[425071779,1781457041000,-29401.54596927,0.00012899,2]
[425071782,1781457041000,-23811.0,0.00012932,2]
[425071777,1781457041000,-1037.28713693,0.00012899,2]
[425071785,1781457041000,-150.0,0.00012959,2]
[425071795,1781457041000,-500.0,0.00012963,2]
[425071773,1781457041000,-150.0,0.00012883,2]
[425071760,1781457041000,-150.0,0.00012743,2]
[425071809,1781457041000,-151.0,0.00013112,2]
[425071817,1781457041000,-151.0,0.00013212,2]
[425071852,1781457041000,-500.0,0.00013698,2]
[425071846,1781457041000,-500.0,0.00013598,2]
[425071853,1781457041000,-500.0,0.00013698,2]
[425071854,1781457041000,-500.0,0.00013698,2]
[425071849,1781457041000,-200.0,0.00013648,2]
[425071848,1781457041000,-2796.32278443,0.00013647,2]
[425071855,1781457041000,-500.0,0.00013698,2]
[425071856,1781457041000,-500.0,0.00013698,2]
[425071858,1781457041000,-503.59381649,0.00013698,2]
[425071866,1781457041000,-500.0,0.00013698,2]
[425071865,1781457041000,-500.0,0.00013698,2]
[425071861,1781457041000,-500.0,0.00013698,2]
[425071850,1781457041000,-420.19418051,0.0001369,2]
[425071863,1781457041000,-500.0,0.00013698,2]
[425071859,1781457041000,-500.0,0.00013698,2]
[425071860,1781457041000,-510.79198853,0.00013698,2]
[425071862,1781457041000,-500.0,0.00013698,2]
[425071867,1781457041000,-500.0,0.00013698,2]
[425071864,1781457041000,-500.0,0.00013698,2]
[425071869,1781457041000,-500.0,0.00013698,2]
[425071868,1781457041000,-500.0,0.00013698,2]
[425071870,1781457041000,-500.0,0.00013698,2]
[425071872,1781457041000,-500.0,0.00013698,2]
[425071874,1781457041000,-500.0,0.00013698,2]
[425071871,1781457041000,-500.0,0.00013698,2]
[425071873,1781457041000,-500.0,0.00013698,2]
[425071857,1781457041000,-500.0,0.00013698,2]
[425071847,1781457041000,-1500000.0,0.00013599,2]
[425071819,1781457041000,-153.0,0.00013212,2]
[425071844,1781457041000,-500.0,0.00013598,2]
[425071851,1781457041000,-500.0,0.00013697,2]
[425071821,1781457041000,-153.0,0.00013212,2]
[425071829,1781457041000,-20988.86700479,0.00013376,2]
[425071830,1781457041000,-200.0,0.00013379,2]
[425071831,1781457041000,-736.0,0.00013477,2]
[425071820,1781457041000,-151.0,0.00013212,2]
[425071823,1781457041000,-200.0,0.00013246,2]
[425071822,1781457041000,-1037.28713687,0.00013233,2]
[425071824,1781457041000,-2796.32278443,0.00013334,2]
[425071826,1781457041000,-29401.54596925,0.00013342,2]
[425071825,1781457041000,-180.0,0.00013342,2]
[425071828,1781457041000,-500.0,0.00013374,2]
[425071827,1781457041000,-2000.0,0.00013374,2]
[425071818,1781457041000,-153.0,0.00013212,2]
[425071833,1781457041000,-500.0,0.00013535,2]
[425071832,1781457041000,-200.0,0.00013512,2]
[425071841,1781457041000,-500.0,0.00013598,2]
[425071838,1781457041000,-1037.28713687,0.00013566,2]
[425071842,1781457041000,-500.0,0.00013598,2]
[425071843,1781457041000,-500.0,0.00013598,2]
[425071845,1781457041000,-500.0,0.00013598,2]
[425071839,1781457041000,-20988.86700479,0.00013568,2]
[425071835,1781457041000,-500.0,0.00013535,2]
[425071836,1781457041000,-2000.0,0.00013535,2]
[425071837,1781457041000,-29401.54596925,0.00013564,2]
[425071834,1781457041000,-2000.0,0.00013535,2]
[425071840,1781457041000,-926.87472025,0.00013589,2]
[425071913,1781457042000,-500.0,0.00013698,2]
[425071911,1781457042000,-500.0,0.00013698,2]
[425071910,1781457042000,-500.0,0.00013698,2]
[425071906,1781457042000,-500.0,0.00013698,2]
[425071909,1781457042000,-500.0,0.00013698,2]
[425071904,1781457042000,-500.0,0.00013698,2]
[425071908,1781457042000,-500.0,0.00013698,2]
[425071907,1781457042000,-500.0,0.00013698,2]
[425071920,1781457042000,-500.0,0.00013698,2]
[425071902,1781457042000,-500.0,0.00013698,2]
[425071905,1781457042000,-500.0,0.00013698,2]
[425071917,1781457042000,-500.0,0.00013698,2]
[425071921,1781457042000,-500.0,0.00013698,2]
[425071916,1781457042000,-500.0,0.00013698,2]
[425071918,1781457042000,-500.0,0.00013698,2]
[425071914,1781457042000,-500.0,0.00013698,2]
[425071912,1781457042000,-500.0,0.00013698,2]
[425071923,1781457042000,-500.0,0.00013698,2]
[425071925,1781457042000,-500.0,0.00013698,2]
[425071922,1781457042000,-500.0,0.00013698,2]
[425071926,1781457042000,-500.0,0.00013698,2]
[425071928,1781457042000,-500.0,0.00013698,2]
[425071929,1781457042000,-500.0,0.00013698,2]
[425071903,1781457042000,-500.0,0.00013698,2]
[425071919,1781457042000,-500.0,0.00013698,2]
[425071901,1781457042000,-500.0,0.00013698,2]
[425071887,1781457042000,-500.0,0.00013698,2]
[425071897,1781457042000,-500.0,0.00013698,2]
[425071876,1781457042000,-500.0,0.00013698,2]
[425071875,1781457042000,-500.0,0.00013698,2]
[425071877,1781457042000,-500.0,0.00013698,2]
[425071878,1781457042000,-500.0,0.00013698,2]
[425071882,1781457042000,-500.0,0.00013698,2]
[425071880,1781457042000,-500.0,0.00013698,2]
[425071881,1781457042000,-500.0,0.00013698,2]
[425071883,1781457042000,-500.0,0.00013698,2]
[425071885,1781457042000,-500.0,0.00013698,2]
[425071884,1781457042000,-500.0,0.00013698,2]
[425071879,1781457042000,-500.0,0.00013698,2]
[425071900,1781457042000,-500.0,0.00013698,2]
[425071889,1781457042000,-500.0,0.00013698,2]
[425071888,1781457042000,-500.0,0.00013698,2]
[425071886,1781457042000,-292.56293859,0.00013698,2]
[425071891,1781457042000,-500.0,0.00013698,2]
[425071890,1781457042000,-500.0,0.00013698,2]
[425071892,1781457042000,-500.0,0.00013698,2]
[425071898,1781457042000,-500.0,0.00013698,2]
[425071893,1781457042000,-500.0,0.00013698,2]
[425071894,1781457042000,-500.0,0.00013698,2]
[425071899,1781457042000,-578.37934228,0.00013698,2]
[425071895,1781457042000,-500.0,0.00013698,2]
[425071896,1781457042000,-500.0,0.00013698,2]
[425071924,1781457042000,-500.0,0.00013698,2]
[425071927,1781457042000,-500.0,0.00013698,2]
[425071915,1781457042000,-500.0,0.00013698,2]
[425071932,1781457042000,-500.0,0.00013698,2]
[425071966,1781457042000,-500.0,0.00013698,2]
[425071957,1781457042000,-500.0,0.00013698,2]
[425071961,1781457042000,-500.0,0.00013698,2]
[425071960,1781457042000,-500.0,0.00013698,2]
[425071964,1781457042000,-500.0,0.00013698,2]
[425071962,1781457042000,-500.0,0.00013698,2]
[425071963,1781457042000,-500.0,0.00013698,2]
[425071978,1781457042000,-500.0,0.00013698,2]
[425071967,1781457042000,-500.0,0.00013698,2]
[425071968,1781457042000,-500.0,0.00013698,2]
[425071977,1781457042000,-500.0,0.00013698,2]
[425071972,1781457042000,-500.0,0.00013698,2]
[425071973,1781457042000,-500.0,0.00013698,2]
[425071976,1781457042000,-500.0,0.00013698,2]
[425071971,1781457042000,-500.0,0.00013698,2]
[425071975,1781457042000,-500.0,0.00013698,2]
[425071974,1781457042000,-500.0,0.00013698,2]
[425071969,1781457042000,-500.0,0.00013698,2]
[425071979,1781457042000,-500.0,0.00013698,2]
[425071980,1781457042000,-500.0,0.00013698,2]
[425071981,1781457042000,-500.0,0.00013698,2]
[425071982,1781457042000,-500.0,0.00013698,2]
[425071984,1781457042000,-779.21,0.00013698,2]
[425071983,1781457042000,-779.21,0.00013698,2]
[425071930,1781457042000,-500.0,0.00013698,2]
[425071956,1781457042000,-500.0,0.00013698,2]
[425071959,1781457042000,-500.0,0.00013698,2]
[425071970,1781457042000,-500.0,0.00013698,2]
[425071954,1781457042000,-500.0,0.00013698,2]
[425071958,1781457042000,-500.0,0.00013698,2]
[425071937,1781457042000,-1077.43,0.00013698,2]
[425071934,1781457042000,-500.0,0.00013698,2]
[425071942,1781457042000,-1077.43,0.00013698,2]
[425071933,1781457042000,-500.0,0.00013698,2]
[425071939,1781457042000,-1077.43,0.00013698,2]
[425071938,1781457042000,-1077.43,0.00013698,2]
[425071935,1781457042000,-500.0,0.00013698,2]
[425071936,1781457042000,-422.85,0.00013698,2]
[425071940,1781457042000,-1077.43,0.00013698,2]
[425071941,1781457042000,-1077.43,0.00013698,2]
[425071944,1781457042000,-1077.43,0.00013698,2]
[425071943,1781457042000,-1077.43,0.00013698,2]
[425071931,1781457042000,-500.0,0.00013698,2]
[425071946,1781457042000,-1077.43,0.00013698,2]
[425071965,1781457042000,-500.0,0.00013698,2]
[425071949,1781457042000,-500.0,0.00013698,2]
[425071953,1781457042000,-500.0,0.00013698,2]
[425071951,1781457042000,-500.0,0.00013698,2]
[425071952,1781457042000,-500.0,0.00013698,2]
[425071955,1781457042000,-500.0,0.00013698,2]
[425071948,1781457042000,-500.0,0.00013698,2]